[Event "*** Titled Tuesday 3|2 Blitz (Early)"]
[Site "Chess.com"]
[Date "2016.11.01"]
[Round "3"]
[White "Usurpov"]
[Black "ajkom197"]
[Result "1-0"]
[WhiteElo "2271"]
[BlackElo "2321"]
[TimeControl "180+2"]
[EndTime "11:35:54 PDT"]
[Termination "Usurpov won on time"]

1. e4 {[%clk 0:03:01.9]} 1... c6 {[%clk 0:03:01.5]} 2. d4 {[%clk 0:03:02.7]}
2... d5 {[%clk 0:03:03.4]} 3. Nc3 {[%clk 0:03:04.3]} 3... dxe4 {[%clk
0:03:03.6]} 4. Nxe4 {[%clk 0:03:06.2]} 4... Nd7 {[%clk 0:03:05.1]} 5. Bc4 {[%clk
0:03:06.7]} 5... Ngf6 {[%clk 0:03:05.2]} 6. Ng5 {[%clk 0:03:07.7]} 6... e6
{[%clk 0:03:06.4]} 7. Qe2 {[%clk 0:03:08.8]} 7... Nb6 {[%clk 0:03:07.5]} 8. Bd3
{[%clk 0:03:09.6]} 8... h6 {[%clk 0:02:56]} 9. N5f3 {[%clk 0:03:10.2]} 9... c5
{[%clk 0:02:47.4]} 10. dxc5 {[%clk 0:03:12.1]} 10... Bxc5 {[%clk 0:02:47.2]} 11.
Ne5 {[%clk 0:03:13.3]} 11... Nbd7 {[%clk 0:02:34.7]} 12. Ngf3 {[%clk 0:03:14.3]}
12... Nxe5 {[%clk 0:02:35.5]} 13. Nxe5 {[%clk 0:03:15.8]} 13... O-O {[%clk
0:02:32.8]} 14. O-O {[%clk 0:03:14.9]} 14... Qc7 {[%clk 0:02:33.3]} 15. Bf4
{[%clk 0:03:07.1]} 15... Bd6 {[%clk 0:02:33.7]} 16. Rad1 {[%clk 0:02:58.5]}
16... b6 {[%clk 0:02:33.9]} 17. Bg3 {[%clk 0:02:26.6]} 17... Bb7 {[%clk
0:02:31]} 18. c4 {[%clk 0:02:24.1]} 18... Rad8 {[%clk 0:02:29.7]} 19. Bc2 {[%clk
0:02:16.5]} 19... Nd7 {[%clk 0:01:55.7]} 20. Qd3 {[%clk 0:01:09.2]} 20... Nf6
{[%clk 0:01:52.4]} 21. Qe2 {[%clk 0:01:10]} 21... Bxe5 {[%clk 0:01:41]} 22. Bxe5
{[%clk 0:01:09.2]} 22... Qc6 {[%clk 0:01:41.5]} 23. f3 {[%clk 0:01:09.3]} 23...
Nd7 {[%clk 0:01:35.5]} 24. Bd6 {[%clk 0:01:06.6]} 24... Rfe8 {[%clk 0:01:33.7]}
25. b4 {[%clk 0:00:59.3]} 25... Nf8 {[%clk 0:01:23.7]} 26. Be5 {[%clk
0:00:54.3]} 26... a5 {[%clk 0:01:19.3]} 27. a3 {[%clk 0:00:54.7]} 27... axb4
{[%clk 0:01:19.8]} 28. axb4 {[%clk 0:00:56.6]} 28... Qc8 {[%clk 0:01:16.5]} 29.
Bc3 {[%clk 0:00:54.2]} 29... Rxd1 {[%clk 0:01:15.9]} 30. Rxd1 {[%clk 0:00:56.1]}
30... Qc7 {[%clk 0:01:08.3]} 31. Qe5 {[%clk 0:00:45]} 31... Qxe5 {[%clk
0:01:07.9]} 32. Bxe5 {[%clk 0:00:46.9]} 32... Rc8 {[%clk 0:01:05]} 33. Bd3
{[%clk 0:00:45.6]} 33... Ng6 {[%clk 0:01:02.7]} 34. Bd6 {[%clk 0:00:44.5]} 34...
Rd8 {[%clk 0:00:58.2]} 35. Bc7 {[%clk 0:00:35.2]} 35... Rd7 {[%clk 0:00:56.7]}
36. Bxb6 {[%clk 0:00:34.1]} 36... Nf4 {[%clk 0:00:57.4]} 37. Bc2 {[%clk
0:00:34.5]} 37... Rxd1+ {[%clk 0:00:45.8]} 38. Bxd1 {[%clk 0:00:36.4]} 38... Nd3
{[%clk 0:00:46.6]} 39. b5 {[%clk 0:00:34.2]} 39... Kf8 {[%clk 0:00:45.4]} 40.
Be2 {[%clk 0:00:35.2]} 40... Ne5 {[%clk 0:00:45.3]} 41. c5 {[%clk 0:00:36.3]}
41... Ke8 {[%clk 0:00:46.4]} 42. c6 {[%clk 0:00:37]} 42... Nxc6 {[%clk
0:00:47.4]} 43. bxc6 {[%clk 0:00:38.9]} 43... Bxc6 {[%clk 0:00:49.3]} 44. Bd4
{[%clk 0:00:39.9]} 44... Kf8 {[%clk 0:00:50.4]} 45. Kf2 {[%clk 0:00:41.4]} 45...
Kg8 {[%clk 0:00:51.8]} 46. f4 {[%clk 0:00:42.6]} 46... Bd5 {[%clk 0:00:53.1]}
47. g3 {[%clk 0:00:44]} 47... Ba2 {[%clk 0:00:54]} 48. Ke3 {[%clk 0:00:45.2]}
48... Bb1 {[%clk 0:00:55.2]} 49. Bc3 {[%clk 0:00:45.8]} 49... Ba2 {[%clk
0:00:56.4]} 50. Kd4 {[%clk 0:00:47.1]} 50... Bb1 {[%clk 0:00:57.6]} 51. Kc5
{[%clk 0:00:48.4]} 51... Bc2 {[%clk 0:00:57.2]} 52. Kd6 {[%clk 0:00:49.6]} 52...
Kf8 {[%clk 0:00:58.5]} 53. Kd7 {[%clk 0:00:48.2]} 53... Bf5 {[%clk 0:00:59.6]}
54. Kd8 {[%clk 0:00:49]} 54... f6 {[%clk 0:00:55]} 55. g4 {[%clk 0:00:41.2]}
55... Be4 {[%clk 0:00:55.1]} 56. Bc4 {[%clk 0:00:40.9]} 56... Kf7 {[%clk
0:00:41.7]} 57. f5 {[%clk 0:00:40.7]} 57... Bd5 {[%clk 0:00:42.9]} 58. Bxd5
{[%clk 0:00:41.1]} 58... exd5 {[%clk 0:00:44]} 59. Kd7 {[%clk 0:00:42.3]} 59...
g6 {[%clk 0:00:45]} 60. Kd6 {[%clk 0:00:40.1]} 60... d4 {[%clk 0:00:10.9]} 61.
Bxd4 {[%clk 0:00:38]} 61... h5 {[%clk 0:00:12.8]} 62. h3 {[%clk 0:00:38.8]}
62... hxg4 {[%clk 0:00:10.5]} 63. hxg4 {[%clk 0:00:40.7]} 63... gxf5 {[%clk
0:00:11.6]} 64. gxf5 {[%clk 0:00:42.6]} 1-0

[Event "*** Titled Tuesday 3|2 Blitz (Early)"]
[Site "Chess.com"]
[Date "2016.11.01"]
[Round "3"]
[White "VMikhalevski"]
[Black "Fandorine"]
[Result "1-0"]
[WhiteElo "2517"]
[BlackElo "2615"]
[TimeControl "180+2"]
[EndTime "11:35:59 PDT"]
[Termination "VMikhalevski won by resignation"]

1. Nf3 {[%clk 0:03:01.1]} 1... g6 {[%clk 0:03:00.2]} 2. g3 {[%clk 0:02:59.1]}
2... Bg7 {[%clk 0:02:57.9]} 3. d4 {[%clk 0:03:00.5]} 3... Nf6 {[%clk 0:02:57.4]}
4. Bg2 {[%clk 0:03:01.6]} 4... O-O {[%clk 0:02:59]} 5. O-O {[%clk 0:03:03.1]}
5... d6 {[%clk 0:02:59]} 6. b3 {[%clk 0:03:02.8]} 6... c5 {[%clk 0:02:44.1]} 7.
Bb2 {[%clk 0:02:57.1]} 7... cxd4 {[%clk 0:02:34.8]} 8. Nxd4 {[%clk 0:02:57.6]}
8... d5 {[%clk 0:02:36.4]} 9. c4 {[%clk 0:02:57.5]} 9... dxc4 {[%clk 0:02:33.2]}
10. bxc4 {[%clk 0:02:57.8]} 10... Qb6 {[%clk 0:02:29.2]} 11. Qb3 {[%clk
0:02:57.3]} 11... Na6 {[%clk 0:02:30.7]} 12. e3 {[%clk 0:02:43.3]} 12... Nc5
{[%clk 0:02:09.9]} 13. Qxb6 {[%clk 0:02:43.4]} 13... axb6 {[%clk 0:02:08.6]} 14.
Nc3 {[%clk 0:02:37.3]} 14... Nd3 {[%clk 0:01:36.6]} 15. Rab1 {[%clk 0:02:37.2]}
15... e6 {[%clk 0:01:15.8]} 16. Ba1 {[%clk 0:02:36.4]} 16... Ne5 {[%clk
0:01:16.9]} 17. Rxb6 {[%clk 0:02:30.7]} 17... Nxc4 {[%clk 0:01:17.2]} 18. Rb4
{[%clk 0:02:25.2]} 18... Nd6 {[%clk 0:01:17.6]} 19. Rd1 {[%clk 0:02:22.8]} 19...
Nfe8 {[%clk 0:00:29.5]} 20. a4 {[%clk 0:01:50.2]} 20... Nf5 {[%clk 0:00:14.7]}
21. Nxf5 {[%clk 0:01:45.2]} 21... gxf5 {[%clk 0:00:16.6]} 22. Nb5 {[%clk
0:01:42.6]} 22... Bxa1 {[%clk 0:00:12.2]} 23. Rxa1 {[%clk 0:01:43.1]} 23... Ra5
{[%clk 0:00:13.6]} 24. Rc1 {[%clk 0:01:41.3]} 24... Bd7 {[%clk 0:00:13.2]} 25.
Bxb7 {[%clk 0:01:39.2]} 25... Nf6 {[%clk 0:00:14.8]} 26. Bc6 {[%clk 0:01:27.3]}
26... Rc8 {[%clk 0:00:10.7]} 27. Nd4 {[%clk 0:01:11.9]} 27... e5 {[%clk
0:00:11.7]} 28. Nb3 {[%clk 0:01:11.9]} 28... Ra6 {[%clk 0:00:09.8]} 29. Bxd7
{[%clk 0:01:07.9]} 29... Rxc1+ {[%clk 0:00:10.6]} 30. Nxc1 {[%clk 0:01:09.6]}
30... Nxd7 {[%clk 0:00:12.4]} 31. Nb3 {[%clk 0:01:10.3]} 31... Rd6 {[%clk
0:00:13.2]} 32. a5 {[%clk 0:01:05.4]} 32... Kg7 {[%clk 0:00:07.3]} 33. Ra4
{[%clk 0:01:02.9]} 33... Rd3 {[%clk 0:00:08.6]} 34. Rb4 {[%clk 0:00:55.8]} 34...
Rd6 {[%clk 0:00:09.2]} 35. Rb7 {[%clk 0:00:52.7]} 35... Nf6 {[%clk 0:00:07.1]}
36. Nc5 {[%clk 0:00:50]} 36... Rd1+ {[%clk 0:00:08.5]} 37. Kg2 {[%clk
0:00:50.4]} 37... Rd2 {[%clk 0:00:10.3]} 38. h3 {[%clk 0:00:46.6]} 38... Ra2
{[%clk 0:00:11.3]} 39. a6 {[%clk 0:00:47.1]} 39... Nd5 {[%clk 0:00:12.6]} 40. a7
{[%clk 0:00:46.6]} 40... Nxe3+ {[%clk 0:00:13.1]} 41. Kf3 {[%clk 0:00:47.4]}
41... Nd1 {[%clk 0:00:14.2]} 42. g4 {[%clk 0:00:44.6]} 42... Rxf2+ {[%clk
0:00:02.6]} 43. Kg3 {[%clk 0:00:45.4]} 43... f4+ {[%clk 0:00:03.9]} 44. Kh4
{[%clk 0:00:45.3]} 44... Ra2 {[%clk 0:00:03.8]} 45. Ne6+ {[%clk 0:00:45.5]}
45... Kf6 {[%clk 0:00:03.1]} 46. Nc7 {[%clk 0:00:43.7]} 46... Ne3 {[%clk
0:00:04.5]} 47. Rb6+ {[%clk 0:00:43.8]} 47... Ke7 {[%clk 0:00:03.1]} 48. a8=Q
{[%clk 0:00:42.2]} 48... Rxa8 {[%clk 0:00:03.1]} 49. Nxa8 {[%clk 0:00:43]} 49...
Ng2+ {[%clk 0:00:05]} 50. Kg5 {[%clk 0:00:42.5]} 50... f3 {[%clk 0:00:06.9]} 51.
Rb2 {[%clk 0:00:36.8]} 51... e4 {[%clk 0:00:06.4]} 52. Nb6 {[%clk 0:00:37.7]}
52... Kd6 {[%clk 0:00:07.3]} 53. Rd2+ {[%clk 0:00:29.9]} 53... Kc5 {[%clk
0:00:07]} 54. Nd5 {[%clk 0:00:30.7]} 54... e3 {[%clk 0:00:06.9]} 55. Nxe3 {[%clk
0:00:31]} 55... Nxe3 {[%clk 0:00:08.8]} 56. Rf2 {[%clk 0:00:31.9]} 56... Nc4
{[%clk 0:00:02.5]} 57. Rxf3 {[%clk 0:00:32.2]} 57... Nd6 {[%clk 0:00:04.4]} 58.
Kh6 {[%clk 0:00:32]} 58... Kd5 {[%clk 0:00:06]} 59. Kxh7 {[%clk 0:00:32.6]}
59... Ke6 {[%clk 0:00:07.9]} 60. Kg8 {[%clk 0:00:32.5]} 60... f5 {[%clk
0:00:09.8]} 61. g5 {[%clk 0:00:31.3]} 61... f4 {[%clk 0:00:10.7]} 1-0

[Event "*** Titled Tuesday 3|2 Blitz (Early)"]
[Site "Chess.com"]
[Date "2016.11.01"]
[Round "3"]
[White "Rating-Schmating"]
[Black "Grebeniuk-S"]
[Result "0-1"]
[WhiteElo "2260"]
[BlackElo "2402"]
[TimeControl "180+2"]
[EndTime "11:36:25 PDT"]
[Termination "Grebeniuk-S won by checkmate"]

1. e4 {[%clk 0:03:01.9]} 1... d5 {[%clk 0:03:00.9]} 2. exd5 {[%clk 0:03:02.6]}
2... Qxd5 {[%clk 0:03:02.8]} 3. Nc3 {[%clk 0:03:02.6]} 3... Qa5 {[%clk
0:03:04.4]} 4. g3 {[%clk 0:03:03.5]} 4... Nf6 {[%clk 0:03:05.9]} 5. Bg2 {[%clk
0:03:04.8]} 5... c6 {[%clk 0:03:07.5]} 6. Nge2 {[%clk 0:03:06.1]} 6... Bg4
{[%clk 0:03:08.6]} 7. O-O {[%clk 0:03:06.1]} 7... Nbd7 {[%clk 0:03:08.4]} 8. d3
{[%clk 0:03:07.6]} 8... e6 {[%clk 0:03:09.4]} 9. Be3 {[%clk 0:03:07.7]} 9... Be7
{[%clk 0:03:06.6]} 10. Qd2 {[%clk 0:03:05.4]} 10... O-O {[%clk 0:03:01]} 11. f3
{[%clk 0:03:05.3]} 11... Bh5 {[%clk 0:02:59.9]} 12. Nf4 {[%clk 0:03:05.8]} 12...
Rad8 {[%clk 0:02:55.6]} 13. Ne4 {[%clk 0:03:02.1]} 13... Qxd2 {[%clk 0:02:54.1]}
14. Bxd2 {[%clk 0:02:58.7]} 14... Bg6 {[%clk 0:02:50.3]} 15. Nxg6 {[%clk
0:02:58.8]} 15... hxg6 {[%clk 0:02:52.2]} 16. Be3 {[%clk 0:02:57.9]} 16... a6
{[%clk 0:02:42.3]} 17. Rad1 {[%clk 0:02:56.5]} 17... Nd5 {[%clk 0:02:43.2]} 18.
Bf2 {[%clk 0:02:55.2]} 18... N7f6 {[%clk 0:02:44.1]} 19. Nxf6+ {[%clk
0:02:54.7]} 19... Bxf6 {[%clk 0:02:45.1]} 20. c3 {[%clk 0:02:54.9]} 20... Be7
{[%clk 0:02:39.7]} 21. f4 {[%clk 0:02:53.6]} 21... Nf6 {[%clk 0:02:34.3]} 22.
Bf3 {[%clk 0:02:52.3]} 22... Nd7 {[%clk 0:02:34.8]} 23. d4 {[%clk 0:02:53]}
23... Nf6 {[%clk 0:02:35.8]} 24. Rd2 {[%clk 0:02:52]} 24... Rd7 {[%clk
0:02:36.6]} 25. Rfd1 {[%clk 0:02:52.8]} 25... Rfd8 {[%clk 0:02:38.2]} 26. Kg2
{[%clk 0:02:54.4]} 26... Nd5 {[%clk 0:02:34.1]} 27. Bxd5 {[%clk 0:02:55.3]}
27... cxd5 {[%clk 0:02:33.1]} 28. Kf3 {[%clk 0:02:55]} 28... Rc8 {[%clk
0:02:34.3]} 29. Rd3 {[%clk 0:02:53.7]} 29... b5 {[%clk 0:02:35.5]} 30. g4 {[%clk
0:02:54.4]} 30... b4 {[%clk 0:02:24.5]} 31. Be1 {[%clk 0:02:41.3]} 31... bxc3
{[%clk 0:02:19.2]} 32. Rxc3 {[%clk 0:02:42.5]} 32... Rxc3+ {[%clk 0:02:11.6]}
33. Bxc3 {[%clk 0:02:43.5]} 33... Rc7 {[%clk 0:02:06.9]} 34. Ke3 {[%clk
0:02:41.1]} 34... Kf8 {[%clk 0:02:05.8]} 35. Kd3 {[%clk 0:02:41]} 35... Ke8
{[%clk 0:02:07.1]} 36. Rf1 {[%clk 0:02:37.1]} 36... f5 {[%clk 0:02:00.5]} 37.
gxf5 {[%clk 0:02:25]} 37... gxf5 {[%clk 0:02:02.4]} 38. Rg1 {[%clk 0:02:24.9]}
38... Kf7 {[%clk 0:02:02.9]} 39. Rg3 {[%clk 0:02:20.7]} 39... Bd6 {[%clk
0:02:00.7]} 40. Ke3 {[%clk 0:02:18.1]} 40... Rc8 {[%clk 0:01:54.5]} 41. Rh3
{[%clk 0:02:19]} 41... Rb8 {[%clk 0:01:45.5]} 42. Kd3 {[%clk 0:02:13]} 42... a5
{[%clk 0:01:45.9]} 43. Ke3 {[%clk 0:02:11]} 43... a4 {[%clk 0:01:46.7]} 44. Rf3
{[%clk 0:02:09.6]} 44... Rh8 {[%clk 0:01:47]} 45. h3 {[%clk 0:02:06]} 45... Rc8
{[%clk 0:01:36.3]} 46. Kd3 {[%clk 0:02:05.6]} 46... Rh8 {[%clk 0:01:32.5]} 47.
Be1 {[%clk 0:02:03.5]} 47... Rb8 {[%clk 0:01:28.4]} 48. Bc3 {[%clk 0:01:58.4]}
48... Kf6 {[%clk 0:01:28.1]} 49. Rf2 {[%clk 0:01:52.4]} 49... Rh8 {[%clk
0:01:27.5]} 50. Rf3 {[%clk 0:01:53.3]} 50... Rh4 {[%clk 0:01:28.4]} 51. Bd2
{[%clk 0:01:53.8]} 51... Rh8 {[%clk 0:01:25.1]} 52. Bc3 {[%clk 0:01:53.5]} 52...
Rh6 {[%clk 0:01:12]} 53. Be1 {[%clk 0:01:49.7]} 53... Kf7 {[%clk 0:01:10.4]} 54.
Ke3 {[%clk 0:01:44.8]} 54... Rh8 {[%clk 0:01:07]} 55. Kd3 {[%clk 0:01:46]} 55...
Rc8 {[%clk 0:01:07.3]} 56. Bc3 {[%clk 0:01:46.9]} 56... Rg8 {[%clk 0:01:05.2]}
57. Ke3 {[%clk 0:01:46.6]} 57... Rh8 {[%clk 0:00:57.9]} 58. Kd3 {[%clk
0:01:46.2]} 58... Rh6 {[%clk 0:00:58.2]} 59. Bd2 {[%clk 0:01:46.7]} 59... Rg6
{[%clk 0:00:59.1]} 60. Kc2 {[%clk 0:01:39.8]} 60... Rg2 {[%clk 0:00:59.2]} 61.
Kd3 {[%clk 0:01:34.2]} 61... Rh2 {[%clk 0:00:55.5]} 62. b3 {[%clk 0:01:33.1]}
62... a3 {[%clk 0:00:42.3]} 63. b4 {[%clk 0:01:27.6]} 63... Rh1 {[%clk
0:00:43.7]} 64. Kc2 {[%clk 0:01:27.5]} 64... Rh2 {[%clk 0:00:39.1]} 65. Kd3
{[%clk 0:01:24.7]} 65... Ke7 {[%clk 0:00:32.9]} 66. Rg3 {[%clk 0:01:19.7]} 66...
Rxd2+ {[%clk 0:00:33.2]} 67. Kxd2 {[%clk 0:01:13.9]} 67... Bxf4+ {[%clk
0:00:34.5]} 68. Re3 {[%clk 0:01:15.6]} 68... Kd6 {[%clk 0:00:29.5]} 69. Kd3
{[%clk 0:01:09.1]} 69... Bxe3 {[%clk 0:00:30.3]} 70. Kxe3 {[%clk 0:01:11]} 70...
g5 {[%clk 0:00:29.9]} 71. Kd3 {[%clk 0:01:02.8]} 71... Kc6 {[%clk 0:00:24.7]}
72. Kc3 {[%clk 0:01:00.4]} 72... f4 {[%clk 0:00:20.6]} 73. Kd3 {[%clk 0:00:59]}
73... Kb5 {[%clk 0:00:21.4]} 74. Ke2 {[%clk 0:00:59.9]} 74... Kxb4 {[%clk
0:00:20.4]} 75. Kf3 {[%clk 0:01:01.3]} 75... Kc4 {[%clk 0:00:21.7]} 76. h4
{[%clk 0:01:02.9]} 76... gxh4 {[%clk 0:00:23.4]} 77. Kxf4 {[%clk 0:01:04.5]}
77... Kxd4 {[%clk 0:00:24.9]} 78. Kg4 {[%clk 0:01:06]} 78... Kc3 {[%clk
0:00:24.5]} 79. Kxh4 {[%clk 0:01:06.5]} 79... d4 {[%clk 0:00:26.4]} 80. Kg4
{[%clk 0:01:08.1]} 80... d3 {[%clk 0:00:28.3]} 81. Kf4 {[%clk 0:01:09.7]} 81...
d2 {[%clk 0:00:30.2]} 82. Ke5 {[%clk 0:01:11.3]} 82... d1=Q {[%clk 0:00:31.5]}
83. Kxe6 {[%clk 0:01:13.2]} 83... Qd4 {[%clk 0:00:32.6]} 84. Kf5 {[%clk
0:01:14.5]} 84... Kc4 {[%clk 0:00:34.5]} 85. Ke6 {[%clk 0:01:15.7]} 85... Qc5
{[%clk 0:00:35.9]} 86. Kd7 {[%clk 0:01:17]} 86... Kd4 {[%clk 0:00:37.8]} 87. Ke6
{[%clk 0:01:18.4]} 87... Qe5+ {[%clk 0:00:39]} 88. Kf7 {[%clk 0:01:19.5]} 88...
Qd6 {[%clk 0:00:40.3]} 89. Ke8 {[%clk 0:01:20.6]} 89... Ke5 {[%clk 0:00:42.2]}
90. Kf7 {[%clk 0:01:21.6]} 90... Qf6+ {[%clk 0:00:43.5]} 91. Kg8 {[%clk
0:01:23.5]} 91... Qe7 {[%clk 0:00:44.9]} 92. Kh8 {[%clk 0:01:24.9]} 92... Kf6
{[%clk 0:00:46.8]} 93. Kg8 {[%clk 0:01:26.2]} 93... Qg7# {[%clk 0:00:48.6]} 0-1

[Event "*** Titled Tuesday 3|2 Blitz (Early)"]
[Site "Chess.com"]
[Date "2016.11.01"]
[Round "3"]
[White "Cayse"]
[Black "FairChess_on_YouTube"]
[Result "0-1"]
[WhiteElo "2591"]
[BlackElo "2723"]
[TimeControl "180+2"]
[EndTime "11:36:41 PDT"]
[Termination "FairChess_on_YouTube won by resignation"]

1. e4 {[%clk 0:03:01.9]} 1... c5 {[%clk 0:02:58.5]} 2. Nf3 {[%clk 0:03:02.4]}
2... e6 {[%clk 0:02:59.7]} 3. d4 {[%clk 0:03:02.8]} 3... cxd4 {[%clk 0:03:01.6]}
4. Nxd4 {[%clk 0:03:04.3]} 4... Nc6 {[%clk 0:02:57.9]} 5. Nc3 {[%clk 0:03:04.7]}
5... a6 {[%clk 0:02:59.1]} 6. Be2 {[%clk 0:03:04.7]} 6... d6 {[%clk 0:02:58.1]}
7. O-O {[%clk 0:03:05.2]} 7... Nf6 {[%clk 0:02:59.5]} 8. Be3 {[%clk 0:03:05.6]}
8... e5 {[%clk 0:02:55.8]} 9. Nxc6 {[%clk 0:02:29.3]} 9... bxc6 {[%clk
0:02:55.6]} 10. f4 {[%clk 0:02:30.8]} 10... exf4 {[%clk 0:02:52.8]} 11. Bxf4
{[%clk 0:02:31.4]} 11... Be7 {[%clk 0:02:53.2]} 12. e5 {[%clk 0:02:24.8]} 12...
Qb6+ {[%clk 0:02:42.5]} 13. Kh1 {[%clk 0:02:25.2]} 13... dxe5 {[%clk 0:02:44.1]}
14. Bxe5 {[%clk 0:02:25.9]} 14... O-O {[%clk 0:02:45.6]} 15. Qd4 {[%clk
0:01:54.2]} 15... Qxd4 {[%clk 0:02:29.4]} 16. Bxd4 {[%clk 0:01:54.8]} 16... c5
{[%clk 0:02:30.1]} 17. Be5 {[%clk 0:01:51.2]} 17... Bb7 {[%clk 0:02:28.4]} 18.
Rad1 {[%clk 0:01:43.6]} 18... Rad8 {[%clk 0:02:24.5]} 19. b3 {[%clk 0:01:43.1]}
19... h5 {[%clk 0:02:16.5]} 20. h3 {[%clk 0:01:43]} 20... h4 {[%clk 0:02:16]}
21. Kg1 {[%clk 0:01:39.7]} 21... Ne4 {[%clk 0:02:09.9]} 22. Bf3 {[%clk 0:01:26]}
22... Nxc3 {[%clk 0:02:00.4]} 23. Bxc3 {[%clk 0:01:19.9]} 23... Bxf3 {[%clk
0:01:54.9]} 24. Rxd8 {[%clk 0:01:04.5]} 24... Rxd8 {[%clk 0:01:54.4]} 25. Rxf3
{[%clk 0:01:05.8]} 25... Rd1+ {[%clk 0:01:42.1]} 26. Rf1 {[%clk 0:01:06.2]}
26... Rxf1+ {[%clk 0:01:41.9]} 27. Kxf1 {[%clk 0:01:07]} 27... f5 {[%clk
0:01:42.8]} 28. Ke2 {[%clk 0:01:08]} 28... Kf7 {[%clk 0:01:42.7]} 29. Kd3 {[%clk
0:01:08.1]} 29... g5 {[%clk 0:01:43.4]} 30. Kc4 {[%clk 0:01:01.4]} 30... Ke6
{[%clk 0:01:42.9]} 31. a4 {[%clk 0:00:47.9]} 31... f4 {[%clk 0:01:29.8]} 32. Be1
{[%clk 0:00:37.3]} 32... Kf5 {[%clk 0:01:19.9]} 33. Kd3 {[%clk 0:00:37.6]} 33...
Bd6 {[%clk 0:01:13.5]} 34. Bf2 {[%clk 0:00:37.4]} 34... Ke5 {[%clk 0:01:05]} 35.
c3 {[%clk 0:00:37.2]} 35... Kd5 {[%clk 0:01:05.3]} 36. Bg1 {[%clk 0:00:33.9]}
36... Be7 {[%clk 0:00:54]} 37. Bf2 {[%clk 0:00:33.4]} 37... Bf8 {[%clk
0:00:52.7]} 38. Be1 {[%clk 0:00:29.5]} 38... Bd6 {[%clk 0:00:49.1]} 39. Bf2
{[%clk 0:00:20.3]} 39... Ke5 {[%clk 0:00:39.5]} 40. Bg1 {[%clk 0:00:20.7]} 40...
Kf5 {[%clk 0:00:36.3]} 41. Bf2 {[%clk 0:00:21.5]} 41... Ke5 {[%clk 0:00:35.8]}
42. Bg1 {[%clk 0:00:21.1]} 42... Kd5 {[%clk 0:00:37.2]} 43. Bf2 {[%clk
0:00:22.1]} 43... a5 {[%clk 0:00:26.3]} 44. Bg1 {[%clk 0:00:21.7]} 44... Be7
{[%clk 0:00:20.3]} 45. Bf2 {[%clk 0:00:22.5]} 45... Bd6 {[%clk 0:00:21.9]} 46.
Bg1 {[%clk 0:00:21.7]} 46... Bf8 {[%clk 0:00:23.5]} 47. Bf2 {[%clk 0:00:21.5]}
47... Be7 {[%clk 0:00:24.9]} 48. Be1 {[%clk 0:00:19.1]} 48... Bd8 {[%clk
0:00:24]} 49. Bf2 {[%clk 0:00:11.4]} 49... Bb6 {[%clk 0:00:18.5]} 50. Be1 {[%clk
0:00:12.2]} 50... c4+ {[%clk 0:00:15.7]} 51. bxc4+ {[%clk 0:00:12.8]} 51... Ke5
{[%clk 0:00:17.4]} 52. c5 {[%clk 0:00:13.6]} 52... Bxc5 {[%clk 0:00:18.7]} 53.
c4 {[%clk 0:00:15.1]} 53... Bb6 {[%clk 0:00:18.9]} 54. Bc3+ {[%clk 0:00:14.3]}
54... Kf5 {[%clk 0:00:19.4]} 55. Bd4 {[%clk 0:00:11.4]} 55... Bc7 {[%clk
0:00:12.8]} 56. c5 {[%clk 0:00:07.4]} 56... g4 {[%clk 0:00:14]} 57. hxg4+ {[%clk
0:00:08.1]} 57... Kxg4 {[%clk 0:00:15.9]} 58. Bf2 {[%clk 0:00:09.5]} 58... h3
{[%clk 0:00:11.7]} 59. gxh3+ {[%clk 0:00:10.4]} 59... Kxh3 {[%clk 0:00:13.6]}
60. Ke4 {[%clk 0:00:10.9]} 60... Kg2 {[%clk 0:00:14]} 61. Bd4 {[%clk 0:00:10.8]}
61... f3 {[%clk 0:00:15.4]} 62. c6 {[%clk 0:00:11.7]} 62... f2 {[%clk
0:00:13.1]} 63. Bxf2 {[%clk 0:00:07]} 63... Kxf2 {[%clk 0:00:15]} 64. Kd5 {[%clk
0:00:08.6]} 64... Ke3 {[%clk 0:00:15.4]} 65. Ke6 {[%clk 0:00:09.7]} 65... Kd4
{[%clk 0:00:16.4]} 66. Kd7 {[%clk 0:00:10.7]} 66... Bg3 {[%clk 0:00:15.6]} 67.
Kc8 {[%clk 0:00:06.7]} 67... Kc5 {[%clk 0:00:15.8]} 68. Kb7 {[%clk 0:00:08.2]}
68... Kb4 {[%clk 0:00:16.7]} 0-1